fUSD/lending_fUSD_20250209
["ID","MTS","AMOUNT","RATE_DAILY","PERIOD"]
[352401462,1739083851966,-500.0,0.00011095,2]
[352401463,1739083851976,-500.0,0.00011095,2]
[352401464,1739083851986,-500.0,0.00011095,2]
[352401465,1739083851998,-500.0,0.00011095,2]
[352401466,1739083852008,-500.0,0.00011095,2]
[352401467,1739083852018,-500.0,0.00011095,2]
[352401468,1739083852027,-500.0,0.00011095,2]
[352401469,1739083852037,-500.0,0.00011095,2]
[352401470,1739083852046,-500.0,0.00011095,2]
[352401471,1739083852055,-500.0,0.00011095,2]
[352401472,1739083852065,-640.07,0.00011095,2]
[352401473,1739083852075,-500.0,0.00011095,2]
[352401474,1739083852087,-200.34,0.00011095,2]
[352401475,1739083852096,-871.67,0.00011095,2]
[352401476,1739083852105,-500.0,0.00011095,2]
[352401477,1739083852115,-500.0,0.00011095,2]
[352401478,1739083852125,-500.0,0.00011095,2]
[352401479,1739083852134,-500.0,0.00011095,2]
[352401480,1739083852143,-500.0,0.00011095,2]
[352401481,1739083852152,-500.0,0.00011095,2]
[352401482,1739083852162,-718.58,0.00011095,2]
[352401483,1739083852171,-605.53,0.00011095,2]
[352401484,1739083852180,-942.81,0.00011095,2]
[352401485,1739083852190,-500.0,0.00011095,2]
[352401486,1739083852200,-500.0,0.00011095,2]
[352401487,1739083852210,-591.11,0.00011095,2]
[352401488,1739083852220,-500.0,0.00011095,2]
[352401489,1739083852230,-746.13,0.00011095,2]
[352401490,1739083852240,-500.0,0.00011095,2]
[352401491,1739083852251,-500.0,0.00011095,2]
[352401492,1739083852262,-512.5,0.00011095,2]
[352401493,1739083852273,-500.0,0.00011095,2]
[352401494,1739083852283,-500.0,0.00011095,2]
[352401495,1739083852293,-504.51,0.00011095,2]
[352401496,1739083852303,-682.771845,0.00011095,2]
[352401497,1739083852312,-500.0,0.00011095,2]
[352401498,1739083852322,-500.0,0.00011095,2]
[352401499,1739083852331,-500.0,0.00011095,2]
[352401500,1739083852340,-500.0,0.00011095,2]
[352401501,1739083852350,-500.0,0.00011095,2]
[352401502,1739083852361,-924.17,0.00011095,2]
[352401503,1739083852371,-634.72,0.00011095,2]
[352401504,1739083852380,-482.9,0.00011095,2]
[352401505,1739083852389,-500.0,0.00011095,2]
[352401506,1739083852399,-648.03,0.00011095,2]
[352401507,1739083852408,-500.0,0.00011095,2]
[352401508,1739083852417,-624.97,0.00011095,2]
[352401509,1739083852427,-474.9,0.00011095,2]
[352401510,1739083852436,-500.0,0.00011095,2]
[352401511,1739083852445,-500.0,0.00011095,2]
[352401512,1739083852454,-1964.39302021,0.00011099,2]
[352401513,1739083852464,-3941.36816,0.000111,2]
[352401514,1739083852474,-302.21,0.00011147,2]
[352401515,1739083852483,-150.62,0.00011147,2]
[352401516,1739083852492,-295.22,0.00011147,2]
[352401517,1739083852501,-150.0,0.00011147,2]
[352401518,1739083852511,-150.22,0.00011147,2]
[352401519,1739083852520,-2034.89,0.00011147,2]
[352401520,1739083852530,-301.26,0.00011147,2]
[352401521,1739083852540,-290.47,0.00011173,2]
[352401522,1739083852551,-607.46,0.00011232,2]
[352401523,1739083852561,-500.0,0.00011232,2]
[352401524,1739083852570,-500.0,0.00011232,2]
[352401525,1739083852580,-500.0,0.00011232,2]
[352401526,1739083852590,-500.0,0.00011232,2]
[352401527,1739083852600,-500.0,0.00011232,2]
[352401528,1739083852608,-500.0,0.00011232,2]
[352401529,1739083852618,-500.0,0.00011232,2]
[352401530,1739083852627,-500.0,0.00011232,2]
[352401531,1739083852636,-281.59,0.00011232,2]
[352401532,1739083852645,-500.0,0.00011232,2]
[352401533,1739083852654,-500.0,0.00011232,2]
[352401534,1739083852663,-287.99,0.00011232,2]
[352401535,1739083852673,-591.75,0.00011232,2]
[352401536,1739083852683,-500.0,0.00011232,2]
[352401537,1739083852692,-500.0,0.00011232,2]
[352401538,1739083852702,-500.0,0.00011232,2]
[352401539,1739083852711,-500.0,0.00011232,2]
[352401540,1739083852721,-500.0,0.00011232,2]
[352401541,1739083852730,-500.0,0.00011232,2]
[352401542,1739083852739,-500.0,0.00011232,2]
[352401543,1739083852749,-500.0,0.00011232,2]
[352401544,1739083852759,-580.99,0.00011232,2]
[352401545,1739083852768,-500.0,0.00011232,2]
[352401546,1739083852777,-640.07,0.00011232,2]
[352401547,1739083852788,-500.0,0.00011232,2]
[352401548,1739083852797,-871.67,0.00011232,2]
[352401549,1739083852806,-500.0,0.00011232,2]
[352401550,1739083852816,-500.0,0.00011232,2]
[352401551,1739083852826,-500.0,0.00011232,2]
[352401552,1739083852836,-255.33,0.00011232,2]
[352401553,1739083852846,-500.0,0.00011232,2]
[352401554,1739083852855,-500.0,0.00011232,2]
[352401555,1739083852866,-718.58,0.00011232,2]
[352401556,1739083852875,-605.53,0.00011232,2]
[352401557,1739083852884,-942.81,0.00011232,2]
[352401558,1739083852894,-500.0,0.00011232,2]
[352401559,1739083852903,-500.0,0.00011232,2]
[352401560,1739083852913,-591.11,0.00011232,2]
[352401561,1739083852923,-500.0,0.00011232,2]
[352401562,1739083852932,-746.13,0.00011232,2]
[352401563,1739083852943,-500.0,0.00011232,2]
[352401564,1739083852953,-500.0,0.00011232,2]
[352401565,1739083852964,-512.5,0.00011232,2]
[352401566,1739083852974,-500.0,0.00011232,2]
[352401567,1739083852983,-1172.19,0.00011232,2]
[352401568,1739083852993,-500.0,0.00011232,2]
[352401569,1739083853004,-504.51,0.00011232,2]
[352401570,1739083853013,-500.0,0.00011232,2]
[352401571,1739083853022,-682.771845,0.00011232,2]
[352401572,1739083853032,-500.0,0.00011232,2]
[352401573,1739083853045,-500.0,0.00011232,2]
[352401574,1739083853055,-500.0,0.00011232,2]
[352401575,1739083853064,-500.0,0.00011232,2]
[352401576,1739083853074,-924.17,0.00011232,2]
[352401577,1739083853084,-634.72,0.00011232,2]
[352401578,1739083853094,-431.86,0.00011232,2]
[352401579,1739083853103,-648.03,0.00011232,2]
[352401580,1739083853113,-500.0,0.00011232,2]
[352401581,1739083853122,-500.0,0.00011232,2]
[352401582,1739083853132,-500.0,0.00011232,2]
[352401583,1739083853141,-587.0,0.00011239,2]
[352401584,1739083853150,-281.98165764,0.00011252,2]
[352401585,1739083853161,-151.0,0.000113,2]
[352401586,1739083853170,-151.0,0.000113,2]
[352401587,1739083853180,-535.48590837,0.000113,2]
[352401588,1739083853189,-607.46,0.00011369,2]
[352401589,1739083853199,-183.94,0.00011369,2]
[352401590,1739083853208,-500.0,0.00011369,2]
[352401591,1739083853217,-500.0,0.00011369,2]
[352401592,1739083853227,-303.88,0.00011369,2]
[352401593,1739083853236,-500.0,0.00011369,2]
[352401594,1739083853245,-500.0,0.00011369,2]
[352401595,1739083853254,-500.0,0.00011369,2]
[352401596,1739083853264,-500.0,0.00011369,2]
[352401597,1739083853273,-500.0,0.00011369,2]
[352401598,1739083853288,-500.0,0.00011369,2]
[352401599,1739083853300,-500.0,0.00011369,2]
[352401600,1739083853314,-201.47,0.00011369,2]
[352401601,1739083853327,-500.0,0.00011369,2]
[352401602,1739083853339,-500.0,0.00011369,2]
[352401603,1739083853350,-500.0,0.00011369,2]
[352401604,1739083853362,-500.0,0.00011369,2]
[352401605,1739083853375,-500.0,0.00011369,2]
[352401606,1739083853387,-500.0,0.00011369,2]
[352401607,1739083853400,-500.0,0.00011369,2]
[352401608,1739083853414,-640.07,0.00011369,2]
[352401609,1739083853427,-500.0,0.00011369,2]
[352401610,1739083853441,-871.67,0.00011369,2]
[352401611,1739083853453,-500.0,0.00011369,2]
[352401612,1739083853466,-500.0,0.00011369,2]
[352401613,1739083853477,-500.0,0.00011369,2]
[352401614,1739083853488,-500.0,0.00011369,2]
[352401615,1739083853499,-500.0,0.00011369,2]
[352401616,1739083853513,-718.58,0.00011369,2]
[352401617,1739083853526,-605.53,0.00011369,2]
[352401618,1739083853539,-942.81,0.00011369,2]
[352401619,1739083853553,-537.12,0.00011369,2]
[352401620,1739083853566,-500.0,0.00011369,2]
[352401621,1739083853579,-591.11,0.00011369,2]
[352401622,1739083853593,-500.0,0.00011369,2]
[352401623,1739083853606,-746.13,0.00011369,2]
[352401624,1739083853618,-500.0,0.00011369,2]
[352401625,1739083853632,-500.0,0.00011369,2]
[352401626,1739083853644,-512.5,0.00011369,2]
[352401627,1739083853655,-500.0,0.00011369,2]
[352401628,1739083853669,-500.0,0.00011369,2]
[352401629,1739083853681,-504.51,0.00011369,2]
[352401630,1739083853694,-500.0,0.00011369,2]
[352401631,1739083853705,-682.771845,0.00011369,2]
[352401632,1739083853718,-500.0,0.00011369,2]
[352401633,1739083853731,-486.87132927,0.00011369,2]
[352401634,1739083853743,-500.0,0.00011369,2]
[352401635,1739083853754,-158.06,0.00011369,2]
[352401636,1739083853766,-924.17,0.00011369,2]
[352401637,1739083853778,-634.72,0.00011369,2]
[352401638,1739083853789,-648.03,0.00011369,2]
[352401639,1739083853799,-500.0,0.00011369,2]
[352401640,1739083853810,-500.0,0.00011369,2]
[352401641,1739083853824,-500.0,0.00011369,2]
[352401642,1739083853837,-2000.0,0.00011407,4]
[352401643,1739083853849,-232.48,0.00011425,2]
[352401644,1739083853859,-878.75,0.00011425,2]
[352401645,1739083853870,-1548.83,0.00011425,2]
[352401646,1739083853880,-315.11672624,0.00011455,2]
[352401647,1739083853892,-1013.0,0.000115,2]
[352401648,1739083853904,-607.0,0.000115,2]
[352401649,1739083853918,-637.0,0.000115,2]
[352401650,1739083853930,-607.46,0.00011506,2]
[352401651,1739083853941,-208.54,0.00011506,2]
[352401652,1739083853956,-500.0,0.00011506,2]
[352401653,1739083853968,-478.29,0.00011506,2]
[352401654,1739083853980,-500.0,0.00011506,2]
[352401655,1739083853991,-500.0,0.00011506,2]
[352401656,1739083854002,-439.14,0.00011506,2]
[352401657,1739083854014,-244.53,0.00011506,2]
[352401658,1739083854026,-500.0,0.00011506,2]
[352401659,1739083854040,-500.0,0.00011506,2]
[352401660,1739083854052,-500.0,0.00011506,2]
[352401661,1739083854063,-500.0,0.00011506,2]
[352401662,1739083854075,-500.0,0.00011506,2]
[352401663,1739083854086,-500.0,0.00011506,2]
[352401664,1739083854097,-500.0,0.00011506,2]
[352401665,1739083854109,-500.0,0.00011506,2]
[352401666,1739083854120,-500.0,0.00011506,2]
[352401667,1739083854132,-640.07,0.00011506,2]
[352401668,1739083854143,-500.0,0.00011506,2]
[352401669,1739083854155,-871.67,0.00011506,2]
[352401670,1739083854166,-500.0,0.00011506,2]
[352401671,1739083854177,-500.0,0.00011506,2]
[352401672,1739083854189,-500.0,0.00011506,2]
[352401673,1739083854200,-500.0,0.00011506,2]
[352401674,1739083854211,-500.0,0.00011506,2]
[352401675,1739083854222,-718.58,0.00011506,2]
[352401676,1739083854234,-605.53,0.00011506,2]
[352401677,1739083854245,-942.81,0.00011506,2]
[352401678,1739083854257,-500.0,0.00011506,2]
[352401679,1739083854268,-591.11,0.00011506,2]
[352401680,1739083854279,-442.55324652,0.00011506,2]
[352401681,1739083854291,-746.13,0.00011506,2]
[352401682,1739083854303,-500.0,0.00011506,2]
[352401683,1739083854314,-500.0,0.00011506,2]
[352401684,1739083854325,-512.5,0.00011506,2]
[352401685,1739083854336,-500.0,0.00011506,2]
[352401686,1739083854349,-500.0,0.00011506,2]
[352401687,1739083854361,-504.51,0.00011506,2]
[352401688,1739083854372,-500.0,0.00011506,2]
[352401689,1739083854383,-682.771845,0.00011506,2]
[352401690,1739083854395,-500.0,0.00011506,2]
[352401691,1739083854406,-605.27,0.00011506,2]
[352401692,1739083854418,-924.17,0.00011506,2]
[352401693,1739083854429,-634.72,0.00011506,2]
[352401694,1739083854440,-648.03,0.00011506,2]
[352401695,1739083854452,-491.85455606,0.00011506,2]
[352401696,1739083854463,-500.0,0.00011506,2]
[352401697,1739083854474,-500.0,0.00011506,2]
[352401698,1739083854485,-2751.0,0.00011507,2]
[352401699,1739083854496,-1000.0,0.0001152,2]
[352401700,1739083854506,-1500.0,0.00011522,2]
[352401701,1739083854518,-696.62122938,0.0001155,2]
[352401702,1739083854529,-1669.02,0.00011639,2]
[352401703,1739083854542,-607.46,0.00011643,2]
[352401704,1739083854553,-500.0,0.00011643,2]
[352401705,1739083854564,-500.0,0.00011643,2]
[352401706,1739083854575,-500.0,0.00011643,2]
[352401707,1739083854586,-225.74,0.00011643,2]
[352401708,1739083854597,-500.0,0.00011643,2]
[352401709,1739083854608,-500.0,0.00011643,2]
[352401710,1739083854620,-500.0,0.00011643,2]
[352401711,1739083854631,-500.0,0.00011643,2]
[352401712,1739083854642,-500.0,0.00011643,2]
[352401713,1739083854654,-500.0,0.00011643,2]
[352401714,1739083854665,-373.59,0.00011643,2]
[352401715,1739083854679,-500.0,0.00011643,2]
[352401716,1739083854691,-640.07,0.00011643,2]
[352401717,1739083854702,-500.0,0.00011643,2]
[352401718,1739083854713,-871.67,0.00011643,2]
[352401719,1739083854724,-500.0,0.00011643,2]
[352401720,1739083854736,-500.0,0.00011643,2]
[352401721,1739083854748,-479.89098145,0.00011643,2]
[352401722,1739083854761,-500.0,0.00011643,2]
[352401723,1739083854772,-500.0,0.00011643,2]
[352401724,1739083854784,-718.58,0.00011643,2]
[352401725,1739083854798,-605.53,0.00011643,2]
[352401726,1739083854809,-942.81,0.00011643,2]
[352401727,1739083854822,-449.43,0.00011643,2]
[352401728,1739083854834,-591.11,0.00011643,2]
[352401729,1739083854846,-746.13,0.00011643,2]
[352401730,1739083854858,-500.0,0.00011643,2]
[352401731,1739083854869,-500.0,0.00011643,2]
[352401732,1739083854881,-512.5,0.00011643,2]
[352401733,1739083854893,-500.0,0.00011643,2]
[352401734,1739083854904,-500.0,0.00011643,2]
[352401735,1739083854915,-504.51,0.00011643,2]
[352401736,1739083854926,-500.0,0.00011643,2]
[352401737,1739083854939,-682.771845,0.00011643,2]
[352401738,1739083854950,-500.0,0.00011643,2]
[352401739,1739083854968,-163.888335,0.00011643,2]
[352401740,1739083854979,-924.17,0.00011643,2]
[352401741,1739083854991,-156.680193,0.00011643,2]
[352401742,1739083855003,-634.72,0.00011643,2]
[352401743,1739083855014,-648.03,0.00011643,2]
[352401744,1739083855026,-500.0,0.00011643,2]
[352401745,1739083855042,-500.0,0.00011643,2]
[352401746,1739083855053,-384.51,0.00011699,2]
[352401747,1739083855065,-150.0,0.00011699,2]
[352401748,1739083855076,-438.77,0.00011699,2]
[352401749,1739083855088,-150.0,0.00011699,2]
[352401750,1739083855099,-438.77,0.00011699,2]
[352401751,1739083855111,-150.0,0.00011699,2]
[352401752,1739083855122,-150.0,0.00011699,2]
[352401753,1739083855133,-150.0,0.00011699,2]
[352401754,1739083855145,-150.0,0.00011699,2]
[352401755,1739083855156,-438.77,0.00011699,2]
[352401756,1739083855167,-150.0,0.00011699,2]
[352401757,1739083855178,-150.0,0.00011699,2]
[352401758,1739083855190,-438.77,0.00011699,2]
[352401759,1739083855201,-150.0,0.00011699,2]
[352401760,1739083855213,-438.77,0.00011699,2]
[352401761,1739083855223,-150.0,0.00011699,2]
[352401762,1739083855234,-150.0,0.00011699,2]
[352401763,1739083855245,-861.33,0.00011699,2]
[352401764,1739083855256,-150.0,0.00011699,2]
[352401765,1739083855267,-150.0,0.00011699,2]
[352401766,1739083855278,-150.0,0.00011699,2]
[352401767,1739083855290,-150.0,0.00011699,2]
[352401768,1739083855301,-150.0,0.00011699,2]
[352401769,1739083855312,-1083.99,0.00011738,2]
[352401770,1739083855323,-607.46,0.0001178,2]
[352401771,1739083855334,-459.88452206,0.0001178,2]
[352401772,1739083855345,-500.0,0.0001178,2]
[352401773,1739083855357,-500.0,0.0001178,2]
[352401774,1739083855367,-171.44,0.0001178,2]
[352401775,1739083855379,-500.0,0.0001178,2]
[352401776,1739083855390,-500.0,0.0001178,2]
[352401777,1739083855401,-500.0,0.0001178,2]
[352401778,1739083855412,-500.0,0.0001178,2]
[352401779,1739083855423,-500.0,0.0001178,2]
[352401780,1739083855434,-500.0,0.0001178,2]
[352401781,1739083855444,-640.07,0.0001178,2]
[352401782,1739083855455,-500.0,0.0001178,2]
[352401783,1739083855466,-871.67,0.0001178,2]
[352401784,1739083855476,-500.0,0.0001178,2]
[352401785,1739083855487,-500.0,0.0001178,2]
[352401786,1739083855498,-500.0,0.0001178,2]
[352401787,1739083855509,-500.0,0.0001178,2]
[352401788,1739083855519,-718.58,0.0001178,2]
[352401789,1739083855530,-605.53,0.0001178,2]
[352401790,1739083855543,-942.81,0.0001178,2]
[352401791,1739083855554,-591.11,0.0001178,2]
[352401792,1739083855566,-746.13,0.0001178,2]
[352401793,1739083855577,-500.0,0.0001178,2]
[352401794,1739083855832,-370.41,0.0001178,2]
[352401795,1739083855852,-512.5,0.0001178,2]
[352401796,1739083855872,-500.0,0.0001178,2]
[352401797,1739083855882,-517.42,0.0001178,2]
[352401798,1739083855893,-504.51,0.0001178,2]
[352401799,1739083855904,-500.0,0.0001178,2]
[352401800,1739083855913,-682.771845,0.0001178,2]
[352401801,1739083855923,-500.0,0.0001178,2]
[352401802,1739083855932,-924.17,0.0001178,2]
[352401803,1739083855942,-634.72,0.0001178,2]
[352401804,1739083855954,-648.03,0.0001178,2]
[352401805,1739083855965,-500.0,0.0001178,2]
[352401806,1739083855974,-985.45,0.00011912,2]
[352401807,1739083855984,-985.45,0.00011912,2]
[352401808,1739083855994,-224.15,0.00011912,2]
[352401809,1739083856004,-981.87,0.00011912,2]
[352401810,1739083856015,-150.0,0.00011912,2]
[352401811,1739083856025,-607.46,0.00011917,2]
[352401812,1739083856035,-500.0,0.00011917,2]
[352401813,1739083856045,-500.0,0.00011917,2]
[352401814,1739083856054,-500.0,0.00011917,2]
[352401815,1739083856064,-500.0,0.00011917,2]
[352401816,1739083856074,-500.0,0.00011917,2]
[352401817,1739083856084,-500.0,0.00011917,2]
[352401818,1739083856093,-500.0,0.00011917,2]
[352401819,1739083856103,-500.0,0.00011917,2]
[352401820,1739083856112,-640.07,0.00011917,2]
[352401821,1739083856121,-500.0,0.00011917,2]
[352401822,1739083856131,-871.67,0.00011917,2]
[352401823,1739083856141,-500.0,0.00011917,2]
[352401824,1739083856150,-500.0,0.00011917,2]
[352401825,1739083856160,-500.0,0.00011917,2]
[352401826,1739083856170,-500.0,0.00011917,2]
[352401827,1739083856180,-718.58,0.00011917,2]
[352401828,1739083856190,-605.53,0.00011917,2]
[352401829,1739083856199,-942.81,0.00011917,2]
[352401830,1739083856209,-591.11,0.00011917,2]
[352401831,1739083856219,-746.13,0.00011917,2]
[352401832,1739083856228,-500.0,0.00011917,2]
[352401833,1739083856238,-512.5,0.00011917,2]
[352401834,1739083856248,-462.76,0.00011917,2]
[352401835,1739083856258,-504.51,0.00011917,2]
[352401836,1739083856267,-500.0,0.00011917,2]
[352401837,1739083856277,-682.771845,0.00011917,2]
[352401838,1739083856287,-500.0,0.00011917,2]
[352401839,1739083856297,-924.17,0.00011917,2]
[352401840,1739083856307,-634.72,0.00011917,2]
[352401841,1739083856316,-648.03,0.00011917,2]
[352401842,1739083856326,-406.31932206,0.00011917,2]
[352401843,1739083856335,-438.77,0.00011968,2]
[352401844,1739083856345,-438.77,0.00011968,2]
[352401845,1739083856354,-204.37,0.00011968,2]
[352401846,1739083856363,-535.48590837,0.00012,2]
[352401847,1739083856373,-228.93,0.00012004,2]
[352401848,1739083856383,-150.0,0.00012049,2]
[352401849,1739083856392,-150.0,0.00012051,2]
[352401850,1739083856401,-1000.0,0.00012051,2]
[352401851,1739083856411,-150.0,0.00012052,2]
[352401852,1739083856421,-607.46,0.00012054,2]
[352401853,1739083856430,-500.0,0.00012054,2]
[352401854,1739083856440,-500.0,0.00012054,2]
[352401855,1739083856449,-500.0,0.00012054,2]
[352401856,1739083856459,-500.0,0.00012054,2]
[352401857,1739083856469,-500.0,0.00012054,2]
[352401858,1739083856479,-500.0,0.00012054,2]
[352401859,1739083856488,-500.0,0.00012054,2]
[352401860,1739083856498,-500.0,0.00012054,2]
[352401861,1739083856507,-640.07,0.00012054,2]
[352401862,1739083856517,-500.0,0.00012054,2]
[352401863,1739083856526,-871.67,0.00012054,2]
[352401864,1739083856535,-500.0,0.00012054,2]
[352401865,1739083856546,-500.0,0.00012054,2]
[352401866,1739083856556,-500.0,0.00012054,2]
[352401867,1739083856566,-500.0,0.00012054,2]
[352401868,1739083856576,-718.58,0.00012054,2]
[352401869,1739083856586,-605.53,0.00012054,2]
[352401870,1739083856596,-942.81,0.00012054,2]
[352401871,1739083856607,-591.11,0.00012054,2]
[352401872,1739083856616,-746.13,0.00012054,2]
[352401873,1739083856625,-500.0,0.00012054,2]
[352401874,1739083856634,-512.5,0.00012054,2]
[352401875,1739083856645,-504.51,0.00012054,2]
[352401876,1739083856655,-500.0,0.00012054,2]
[352401877,1739083856665,-682.771845,0.00012054,2]
[352401878,1739083856675,-500.0,0.00012054,2]
[352401879,1739083856684,-924.17,0.00012054,2]
[352401880,1739083856694,-634.72,0.00012054,2]
[352401881,1739083856704,-648.03,0.00012054,2]
[352401882,1739083856714,-150.0,0.00012057,2]
[352401883,1739083856723,-150.0,0.0001206,2]
[352401884,1739083856733,-150.0,0.00012064,2]
[352401885,1739083856743,-150.0,0.00012065,2]
[352401886,1739083856752,-150.0,0.00012065,2]
[352401887,1739083856762,-150.0,0.00012066,2]
[352401888,1739083856771,-150.0,0.00012071,2]
[352401889,1739083856780,-150.0,0.00012071,2]
[352401890,1739083856789,-150.0,0.00012072,2]
[352401891,1739083856800,-150.0,0.00012076,2]
[352401892,1739083856810,-150.0,0.00012079,2]
[352401893,1739083856819,-279.3259366,0.00012082,2]
[352401894,1739083856828,-150.0,0.00012084,2]
[352401895,1739083856839,-150.0,0.00012084,2]
[352401896,1739083856848,-150.0,0.00012084,2]
[352401897,1739083856858,-150.0,0.00012085,2]
[352401898,1739083856867,-150.0,0.00012087,2]
[352401899,1739083856878,-150.0,0.00012088,2]
[352401900,1739083856888,-150.0,0.00012091,2]
[352401901,1739083856898,-150.0,0.00012092,2]
[352401902,1739083856908,-150.0,0.00012094,2]
[352401903,1739083856918,-150.0,0.00012095,2]
[352401904,1739083856928,-150.0,0.00012099,2]
[352401905,1739083856938,-1000.0,0.000121,2]
[352401906,1739083856949,-150.0,0.00012105,2]
[352401907,1739083856959,-150.0,0.00012109,2]
[352401908,1739083856969,-150.0,0.00012122,2]
[352401909,1739083856982,-150.0,0.00012126,2]
[352401910,1739083856994,-150.0,0.00012133,2]
[352401911,1739083857003,-150.0,0.00012139,2]
[352401912,1739083857014,-150.0,0.0001214,2]
[352401913,1739083857023,-150.0,0.00012154,2]
[352401914,1739083857033,-150.0,0.00012158,2]
[352401915,1739083857043,-150.0,0.00012162,2]
[352401916,1739083857053,-150.0,0.00012164,2]
[352401917,1739083857062,-150.0,0.00012164,2]
[352401918,1739083857072,-150.0,0.00012167,2]
[352401919,1739083857081,-150.0,0.00012168,2]
[352401920,1739083857090,-150.0,0.00012176,2]
[352401921,1739083857099,-150.0,0.00012186,2]
[352401922,1739083857109,-150.0,0.00012187,2]
[352401923,1739083857118,-150.0,0.00012188,2]
[352401924,1739083857127,-150.0,0.0001219,2]
[352401925,1739083857137,-150.0,0.00012191,2]
[352401926,1739083857148,-607.46,0.00012191,2]
[352401927,1739083857158,-637.69,0.00012191,2]
[352401928,1739083857167,-500.0,0.00012191,2]
[352401929,1739083857176,-500.0,0.00012191,2]
[352401930,1739083857185,-500.0,0.00012191,2]
[352401931,1739083857195,-500.0,0.00012191,2]
[352401932,1739083857205,-500.0,0.00012191,2]
[352401933,1739083857214,-500.0,0.00012191,2]
[352401934,1739083857224,-500.0,0.00012191,2]
[352401935,1739083857233,-640.07,0.00012191,2]
[352401936,1739083857242,-500.0,0.00012191,2]
[352401937,1739083857251,-871.67,0.00012191,2]
[352401938,1739083857264,-500.0,0.00012191,2]
[352401939,1739083857274,-500.0,0.00012191,2]
[352401940,1739083857283,-500.0,0.00012191,2]
[352401941,1739083857293,-234.1,0.00012191,2]
[352401942,1739083857303,-718.58,0.00012191,2]
[352401943,1739083857312,-605.53,0.00012191,2]
[352401944,1739083857322,-942.81,0.00012191,2]
[352401945,1739083857332,-591.11,0.00012191,2]
[352401946,1739083857341,-746.13,0.00012191,2]
[352401947,1739083857351,-500.0,0.00012191,2]
[352401948,1739083857360,-512.5,0.00012191,2]
[352401949,1739083857370,-504.51,0.00012191,2]
[352401950,1739083857380,-184.57,0.00012191,2]
[352401951,1739083857389,-682.771845,0.00012191,2]
[352401952,1739083857398,-636.02,0.00012191,2]
[352401953,1739083857408,-924.17,0.00012191,2]
[352401954,1739083857417,-634.72,0.00012191,2]
[352401955,1739083857426,-648.03,0.00012191,2]
[352401956,1739083857436,-150.0,0.00012195,2]
[352401957,1739083857445,-150.0,0.00012197,2]
[352401958,1739083857455,-150.0,0.000122,2]
[352401959,1739083857464,-150.0,0.00012201,2]
[352401960,1739083857474,-150.0,0.00012201,2]
[352401961,1739083857483,-150.0,0.00012203,2]